Cogmind - Beta 13 @@@ ROGUE MODE // 2024.07.05 @ 23:01:55 Player: ywiktor Result: Destroyed by UM-KIG(R) with Subdweller Beam Cannon Performance ------------- Evolutions (0) 0 Regions Visited (3) 600 Robots Destroyed (26) 130 Value Destroyed (677) 677 Prototype IDs (0) 0 Alien Tech Used (0) 0 Bonus (0) 0 TOTAL SCORE: 1407 Bonus ------- None Cogmind --------- Core Integrity 0/250 Matter 294/300 Energy 200/200 System Corruption 0% Temperature Cool (27) Movement Walking (190) Ox1 Location -10/Subcaves Parts ------- > --- POWER (1) -------- Subdweller Power Source > --- PROPULSION (2) --- Aluminum Leg Aluminum Leg > --- UTILITY (2) ------ Large Storage Unit Signal Interpreter > --- WEAPON (2) ------- Subdweller Laser > --- INVENTORY (15) --- Ion Engine Ion Engine Ion Engine Ion Engine Aluminum Leg Flight Unit Small Storage Unit Hacking Suite EM Pulse Gun Medium Laser Small Laser Particle Gun Assault Rifle Assault Rifle Peak State ------------ > --- POWER ------------ Subdweller Power Source > --- PROPULSION ------- Aluminum Leg Aluminum Leg > --- UTILITY ---------- Large Storage Unit Signal Interpreter > --- WEAPON ----------- Particle Gun Light Assault Rifle > --- INVENTORY -------- Ion Engine Ion Engine Ion Engine Ion Engine Aluminum Leg Flight Unit Small Storage Unit Hacking Suite EM Pulse Gun Medium Laser Small Laser Subdweller Laser Assault Rifle Assault Rifle [Rating: 10] Favorites ----------- Power Ion Engine Engine Ion Engine Propulsion Aluminum Leg Leg Aluminum Leg Utility Large Storage Unit Storage Large Storage Unit Processor Signal Interpreter Weapon Light Assault Rifle Energy Gun Medium Laser Ballistic Gun Light Assault Rifle Launcher Grenade Launcher Build | -11 -10 -10 -10 ------- Run | Yrd Mat Min Sub Slots Evolved . | . . . . Power . | . . . . Propulsion . | . . . . Utility . | . . . . Weapon . | . . . . Parts Attached 19 | 6 7 3 3 Power 3 | 1 1 . 1 Engine 3 | 1 1 . 1 Core . | . . . . Reactor . | . . . . Propulsion 4 | 2 . 2 . Treads . | . . . . Leg 4 | 2 . 2 . Wheel . | . . . . Hover . | . . . . Flight . | . . . . Utility 5 | 1 4 . . Device . | . . . . Storage 4 | 1 3 . . Processor 1 | . 1 . . Hackware . | . . . . Protection . | . . . . Artifact . | . . . . Weapon 7 | 2 2 1 2 Energy Gun 4 | 1 1 . 2 Energy Cannon . | . . . . Ballistic Gun 2 | 1 1 . . Ballistic Cannon . | . . . . Launcher 1 | . . 1 . Special Weapon . | . . . . Impact Weapon . | . . . . Slashing Weapon . | . . . . Piercing Weapon . | . . . . Special Melee Weapon . | . . . . Unidentified Prototypes . | . . . . Parts Lost 7 | . 3 2 2 Power 1 | . 1 . . Propulsion 2 | . . 2 . Utility . | . . . . Weapon 4 | . 2 . 2 Highest Loss Streak 2 | . 2 1 1 To Critical Strikes . | . . . . Average Slot Usage (%) 98 | . 98 97 100 Engine 13 | . 13 14 14 Leg 26 | . 28 25 28 Storage 18 | . 24 14 14 Processor 9 | . 3 14 14 Energy Gun 7 | . 13 1 12 Ballistic Gun 13 | . 13 14 14 Launcher 6 | . . 12 1 Naked Turns . | . . . . Heaviest Build 33 | 12 33 29 30 Greatest Support 20 | 20 20 20 20 Greatest Overweight (x) 2 | . 1 2 1 Average Overweight (x) 1 | . . 1 1 Largest Inventory Capacity 15 | 8 15 15 15 Average Capacity 14 | 6 14 15 15 Most Carried 14 | 2 10 13 14 Average Carried 8 | 1 4 12 13 Final Capacity 15 | 8 15 15 15 Final Carried 14 | 2 10 13 14 Class Distribution -------------------- 96% | Mutant 3% | Scavenger-Mutant Dominant Class ---------------- Mutant | -10/Materials Mutant | -10/Mines Scavenger-Mutant | -10/Subcaves Resources | -11 -10 -10 -10 ----------- Run | Yrd Mat Min Sub Matter Collected 530 | 241 157 108 24 Remotely . | . . . . Salvage Created 736 | . 571 111 54 Parts 49 | . 36 11 2 Haulers Intercepted . | . . . . Recyclers Shooed . | . . . . Parts Field Recycled . | . . . . Retrieved Matter . | . . . . Parts Self-Destructed . | . . . . Prevented . | . . . . Kills | -11 -10 -10 -10 ------- Run | Yrd Mat Min Sub Combat Hostiles Destroyed 24 | . 16 7 1 Guns 18 | . 16 1 1 AOE 6 | . . 6 . Classes Destroyed 4 | . 3 . 1 Operator 2 | . 2 . . Swarmer 9 | . 6 3 . Grunt 14 | . 10 4 . Subdweller 1 | . . . 1 Best Kill Streak 7 | . 7 3 1 Combat Bots Only 7 | . 7 3 1 Max Kills in Single Turn 2 | . 1 2 1 Gunslinging . | . . . . Exploded 2 | . . 2 . Melee . | . . . . Uniques/NPCs Destroyed . | . . . . Combat | -11 -10 -10 -10 -------- Run | Yrd Mat Min Sub Hostile Shots Fired 120 | . 77 34 9 Missed 31 | . 21 10 . Damage Taken 1068 | . 607 265 196 Core 275 | . 124 50 101 Absorbed by Shields . | . . . . Core Remaining (%) 100 | 100 . . . Volleys Fired 63 | . 49 9 5 Largest 2 | . 2 2 2 Hottest 85 | . 70 50 85 Shots Fired 110 | . 90 10 10 Gun 103 | . 90 3 10 Cannon . | . . . . Launcher 7 | . . 7 . Special . | . . . . Kinetic 50 | . 42 3 5 Thermal 44 | . 39 . 5 Explosive 7 | . . 7 . Electromagnetic 9 | . 9 . . Robot Hit Streak 18 | . 18 3 4 Robot Miss Streak 3 | . 3 1 1 Penetration Max . | . . . . Secondary Targets 1 | . 1 . . Max Gunslinging Chain 1 | . 1 . . Shots Hit Robots 78 | . 65 6 7 Core Hits 42 | . 31 10 1 Critical Kills . | . . . . Critical Parts Destroyed . | . . . . Critical Strikes 4 | . 4 . . Burn 4 | . 4 . . Melee Attacks . | . . . . Impact . | . . . . Slashing . | . . . . Piercing . | . . . . Sneak Attacks . | . . . . Combat Hostiles . | . . . . Follow-up Attacks . | . . . . Damage Inflicted 1274 | . 793 401 80 Guns 887 | . 792 15 80 Cannons . | . . . . Explosions 386 | . . 386 . Melee . | . . . . Ramming 1 | . 1 . . Kinetic 350 | . 302 15 33 Thermal 452 | . 405 . 47 Explosive 386 | . . 386 . Electromagnetic 85 | . 85 . . Impact . | . . . . Slashing . | . . . . Piercing . | . . . . Highest Corruption . | . . . . Average Corruption . | . . . . Corruption Purged . | . . . . Corruption Blocked . | . . . . Overload Shots . | . . . . Overflow Damage . | . . . . Projectiles . | . . . . Explosions . | . . . . Melee . | . . . . Knockbacks . | . . . . Impact . | . . . . Kinetic . | . . . . Secondary . | . . . . Self-Inflicted Damage 16 | . . 16 . Shots 1 | . . 1 . Rammed . | . . . . Targets Rammed 1 | . 1 . . Kicked 1 | . 1 . . Crushed . | . . . . Highest Temperature 159 | . 159 22 18 Average Temperature 42 | . 46 8 5 Received Heat Transfer 432 | . 276 114 42 Siege Activations . | . . . . Robots Corrupted . | . . . . Combat Hostiles . | . . . . Parts Fried . | . . . . Impact Corruptions . | . . . . Robots Melted . | . . . . Combat Hostiles . | . . . . Parts Melted 4 | . 4 . . Heat Transferred 1591 | . 1480 . 111 Parts Sabotaged . | . . . . Parts Stolen . | . . . . Parts Stripped . | . . . . Power Chain Reactions . | . . . . Alert | -11 -10 -10 -10 ------- Run | Yrd Mat Min Sub Peak Influence 366 | . 366 174 . Initial 51 | . . 51 . Average 98 | . 176 37 . Maximum Alert Level 1 | . 1 . . Low Security (%) 81 | 100 57 100 . Level 1 18 | . 42 . . Level 2 . | . . . . Level 3 . | . . . . Level 4 . | . . . . Level 5 . | . . . . High Security . | . . . . Max Security . | . . . . Squads Dispatched 4 | . 4 . . Investigation 1 | . 1 . . Extermination . | . . . . Reinforcement 3 | . 3 . . Assault . | . . . . Garrison . | . . . . Intercept . | . . . . Searches Triggered . | . . . . Construction Impeded . | . . . . Haulers Reinforced . | . . . . Active Scanning Responses . | . . . . Cargo Convoy Interrupts . | . . . . Stealth | -11 -10 -10 -10 --------- Run | Yrd Mat Min Sub Distress Signals 2 | . 2 . . Communications Jammed . | . . . . Distress Signals . | . . . . Times Spotted 42 | . 27 7 8 Peak Tracking Total 7 | . 7 3 6 Tactical Retreats 1 | . 1 . . Traps | -11 -10 -10 -10 ------- Run | Yrd Mat Min Sub Traps Triggered 1 | . 1 . . Indirectly . | . . . . Trap Hack Attempts . | . . . . Triggered . | . . . . Disarmed . | . . . . Reprogrammed . | . . . . Reused . | . . . . Traps Extracted . | . . . . Installed . | . . . . Triggered . | . . . . Machines | -11 -10 -10 -10 ---------- Run | Yrd Mat Min Sub Machines Disabled . | . . . . Max in Single Turn . | . . . . Machines Repaired . | . . . . Machines Dismantled . | . . . . Machines Sabotaged . | . . . . Overloaded Fab Kills . | . . . . Hacking | -11 -10 -10 -10 --------- Run | Yrd Mat Min Sub Machines Accessed 2 | . 2 . . Terminals 2 | . 2 . . Fabricators . | . . . . Repair Stations . | . . . . Recycling Units . | . . . . Scanalyzers . | . . . . Garrison Access . | . . . . Total Hacks 4 | . 4 . . Successful 1 | . 1 . . Failed 3 | . 3 . . Catastrophic . | . . . . Database Lockouts . | . . . . Manual 4 | . 4 . . Terminals 4 | . 4 . . Fabricators . | . . . . Repair Stations . | . . . . Recycling Units . | . . . . Scanalyzers . | . . . . Garrison Access . | . . . . Terminal Hacks . | . . . . Fabricator Hacks . | . . . . Repair Station Hacks . | . . . . Recycling Unit Hacks . | . . . . Scanalyzer . | . . . . Garrison Access Hacks . | . . . . Unauthorized Hacks 1 | . 1 . . Terminals 1 | . 1 . . Botnet 1 | . 1 . . Fabricators . | . . . . Repair Stations . | . . . . Recycling Units . | . . . . Scanalyzers . | . . . . Garrison Access . | . . . . Data Cores Recovered . | . . . . Used . | . . . . Hacking Detections 2 | . 2 . . Full Trace Events . | . . . . Feedback Events . | . . . . Feedback Blocked . | . . . . Robot Schematics Acquired . | . . . . Robots Built . | . . . . Authchips . | . . . . Time . | . . . . Total Robot Build Rating . | . . . . Part Schematics Acquired . | . . . . Parts Built . | . . . . Authchips . | . . . . Time . | . . . . Total Part Build Rating . | . . . . Parts Repaired . | . . . . Time . | . . . . Parts Recycled . | . . . . Recycled Matter . | . . . . Retrieved Matter . | . . . . Retrieved Components . | . . . . Parts Scanalyzed . | . . . . Part Schematics Acquired . | . . . . Parts Damaged . | . . . . Bothacking | -11 -10 -10 -10 ------------ Run | Yrd Mat Min Sub Used RIF Installer . | . . . . Robots Hacked . | . . . . Non-combat . | . . . . Combat . | . . . . Robot Hacks Applied . | . . . . Relay Couplers Released . | . . . . Fabnet Peak Effective % . | . . . . Robots Rewired . | . . . . Allies Hacked . | . . . . Hacks Repelled . | . . . . Allies | -11 -10 -10 -10 -------- Run | Yrd Mat Min Sub Total Allies . | . . . . Largest Group . | . . . . Highest-Rated Group . | . . . . Highest-Rated Ally . | . . . . Total Orders . | . . . . Ally Attacks . | . . . . Total Damage . | . . . . Kills . | . . . . Allies Corrupted . | . . . . Allies Melted . | . . . . Intel | -11 -10 -10 -10 ------- Run | Yrd Mat Min Sub Robot Analysis Total . | . . . . Derelict Logs Recovered 2 | . . 2 . Drone Launches . | . . . . Drone Recoveries . | . . . . Exploration | -11 -10 -10 -10 ------------- Run | Yrd Mat Min Sub Turns Passed 2417 | 50 1022 1216 129 Spaces Moved 1143 | 37 451 597 58 Core 6 | 6 . . . Treads . | . . . . Legs 1137 | 31 451 597 58 Wheels . | . . . . Hover . | . . . . Flight . | . . . . Fastest Speed 50 | 50 120 190 190 Average Speed 189 | 108 185 198 190 Slowest Speed 260 | 120 190 260 190 Overloaded Moves . | . . . . Propulsion Burnouts . | . . . . Robots Hopped . | . . . . Cave-ins Triggered . | . . . . Exploration Rate (%) 41 | 3 65 95 4 Regions Visited 3 Branch Regions 2 Pre-discovered Areas 1 | . . 1 . Known Exits Taken 2 | . 1 1 . Unknown Exits Taken 1 | 1 . . . Scrap Searched 2 | . . 1 1 Spaces Dug . | . . . . Terrain Destroyed 39 | . . 39 . Melee . | . . . . Projectile . | . . . . AOE 39 | . . 39 . Terrain Rammed . | . . . . Walls Destroyed . | . . . . Machines Disabled . | . . . . Actions | -11 -10 -10 -10 --------- Run | Yrd Mat Min Sub Total 1280 | 44 549 620 67 Wait 35 | . 28 7 . Move 1140 | 36 450 596 58 Hop . | . . . . Pick Up 18 | 2 10 5 1 Fast Attach 10 | 6 4 . . Attach 6 | . 3 2 1 Detach 2 | . 2 . . Swap 3 | . . 1 2 Drop 2 | . 2 . . Fire 63 | . 49 9 5 Melee . | . . . . Ram . | . . . . Kick 1 | . 1 . . Crush . | . . . . Escape Stasis . | . . . . Rewire . | . . . . Trap . | . . . . Miscellaneous . | . . . . Route ------- -11/Scrapyard -10/Materials (discovered 2 exits: *Mat / *Min) -10/Mines (discovered 3 exits: *Mat x2 / *Sub) -10/Subcaves History --------- Turn | Location | Event 6 | -11/Scrapyard | Discovered new exit (range 15) 51 | -11/Scrapyard | Entered Materials 315 | -10/Materials | Build established: Mutant 411 | -10/Materials | Destroyed 7 combat bots 658 | -10/Materials | Discovered new exit (range 16) 832 | -10/Materials | Discovered new exit (range 10) 1071 | -10/Materials | Identified exit to Mines 1073 | -10/Materials | Entered Mines 1111 | -10/Mines | Met a Derelict bent on vengeance 1207 | -10/Mines | Core integrity fell below 50% 1824 | -10/Mines | Discovered new exit (range 9) 1839 | -10/Mines | Identified exit to Materials 2237 | -10/Mines | Discovered exit to Materials (range 13) 2272 | -10/Mines | Discovered new exit (range 3) 2279 | -10/Mines | Identified exit to Subcaves 2289 | -10/Mines | Entered Subcaves 2415 | -10/Subcaves | Ambushed by swarm of Subdwellers 2415 | -10/Subcaves | Ambushed by Subdwellers from Twisted Machinery 2415 | -10/Subcaves | Ambushed by Subdwellers from Twisted Machinery 2415 | -10/Subcaves | Ambushed by Subdwellers from Twisted Machinery 2416 | -10/Subcaves | Core integrity fell below 20% 2418 | -10/Subcaves | Destroyed by UM-KIG(R) with Subdweller Beam Cannon Last Messages --------------- 02308_ SM-5JD(R) knocked back. 02308_ SM-5JD(R) destroyed. 02312_ 7D-Z25(R) destroyed. 02316_ Subatomizers dissect the Sub. Beam Cannon. 02326_ Acquired 4 matter. 02338_ Acquired Sub. Laser. 02344_ Acquired 10 matter. A mess of Twisted Machinery falls from the cavern ceiling. UM-KIG(R) comes tumbling into view. 02415_ LM-HNT(R) angrily emerges from the Twisted Machinery. 02415_ YA-6JR(R) angrily emerges from the Twisted Machinery. 02415_ LD-HGQ(R) angrily emerges from the Twisted Machinery. 02417_ O7-H0S(R) emerges from the Twisted Machinery. 02417_ Lgt. Assault Rifle destroyed. Map ----- +----------------------------------------------------+ | ?????????????????????????????????????????????????? | | ????????########?????????????????????????????????? | | ????????# ] ##????????????????????????????????? | | ????????# % #????????????????????????????????? | | ????????# ! #????????????????????????????????? | | ????????### #????????????????????????????????? | | ??????????# #????????????????????????????????? | | ??????????### #????????????????????????????????? | | ???????????# #????????????????????????????????? | | ??????##?### "#????????????????????????????????? | | ??????# ## ##! ##????????????????????????????????? | | ??????# %&%#?????????????????????????????????? | | ??????## % !%#?????????????????????????????????? | | ???????# ! ##????????????????????????????????? | | ???????# "#????????????????????????????????? | | ??????## ## # ##????????????????????????????????? | | ??????# ###?????????????????????????????????? | | ?????### ## #???????????????????????????????????? | | ????## ## # #??????????????????????????????????? | | ????# ## ## ##????????????????????????????????? | | ???## #?## #????????????????????????????????? | | ### ##? #????????????????????????????????? | | ## ##?????###????????????????????????? | | %# #???#####R###??????????????????????? | | # ## #?#### #RR##?????????????????????? | | ## #### #####R@R#?????????????????????? | | ## ###??#R#"# #????????????????????? | | #?## ##?????####? ???????????????????? | | ???# # # #???????????? ?????????????????? | | ???# ###########?????????????###????????????????? | | ???#" ???????????????????????????????????????????? | | ???# ???????????????????????????????????????????? | | ???# ???????????????????????????????????????????? | | ???# ???????????????????????????????????????????? | | ??? ????????????????????????????????????????????? | | ????"????????????????????????????????????????????? | | ?????????????????????????????????????????????????? | | ?????????????????????????????????????????????????? | | ?????????????????????????????????????????????????? | | ?????????????????????????????????????????????????? | | ?????????????????????????????????????????????????? | | ?????????????????????????????????????????????????? | | ?????????????????????????????????????????????????? | | ?????????????????????????????????????????????????? | | ?????????????????????????????????????????????????? | | ?????????????????????????????????????????????????? | | ?????????????????????????????????????????????????? | | ?????????????????????????????????????????????????? | | ?????????????????????????????????????????????????? | | ?????????????????????????????????????????????????? | +----------------------------------------------------+ Best States ------------- Heat Dissipation 25 Energy Generation 15 Energy Capacity 250 Matter Stores 300 Matter Capacity 300 Sight Range 16 Terrain Scan Density 10 Evasion (%) 55 Item Schematics ----------------- None Robot Schematics ------------------ None Fabricated ------------ Nothing Alien Tech Used ----------------- None Achievements -------------- None Challenges ------------ None Game ------ Seed SalvageLegSabre Manual? 0 Play Time 00:12:09 Cumulative 32.5 hours Start 2024.07.05 @ 22:50:32 End 2024.07.05 @ 23:01:55 Sessions 1 Manual Loads 0 Difficulty Rogue Special Mode None Game No. 34 Rogue 34 Adventurer 0 Explorer 0 Win Type - Total 0 Types 0/0/0/0/0/0/0/0/0 Lore% 36 Gallery% 35 Achievement% 34 Wizard Run 0 Options --------- Layout 1 ASCII 0 Keyboard 0 Movement Numpad Keybinds 0 Fullscreen 1 Font 32/SmallcapsGlow Map View 50x35 Zoom Use 0% Tactical HUD 1 Map Filters NONE Filters NONE Steam 1 RUN: c13f875a-8b8c-47c6-8c40-e88fecf866b7